Cogmind - Beta 12 @@@ ROGUE MODE // 2023.03.13 @ 12:30:56 Player: ZLD1 Result: Self-destructed Performance ------------- Evolutions (1) 500 Regions Visited (3) 600 Robots Destroyed (10) 50 Value Destroyed (220) 220 Prototype IDs (2) 40 Alien Tech Used (0) 0 Bonus (0) 0 TOTAL SCORE: 1410 Bonus ------- None Cogmind --------- Core Integrity 311/400 Matter 189/300 Energy 125/125 System Corruption 0% Temperature Cool (0) Movement Rolling (100) Location -9/Mines Parts ------- > --- POWER (1) -------- Light Ion Engine > --- PROPULSION (4) --- Compact Wheel > --- UTILITY (2) ------ Small Storage Unit ECM Suite > --- WEAPON (2) ------- Improved Assault Rifle > --- INVENTORY (8) ---- Improved Flight Unit Rocket Launcher Proton Bomb Trap Proton Bomb Trap Proton Bomb Trap Peak State ------------ > --- POWER ------------ Improved Ion Engine > --- PROPULSION ------- Compact Wheel Compact Wheel Compact Wheel Improved Flight Unit > --- UTILITY ---------- Small Storage Unit ECM Suite > --- WEAPON ----------- Improved Assault Rifle Light Cannon > --- INVENTORY -------- (None) [Rating: 14] Favorites ----------- Power Improved Ion Engine Engine Improved Ion Engine Propulsion Compact Wheel Wheel Compact Wheel Flight Unit Improved Flight Unit Utility Small Storage Unit Device ECM Suite Storage Small Storage Unit Weapon Light Cannon Energy Cannon Beam Cannon Ballistic Gun Improved Assault Rifle Ballistic Cannon Light Cannon Build | -11 -10 -9 -9 ------- Run | Jun Mat Mat Min Slots Evolved 2 | . . 2 . Power . | . . . . Propulsion 2 | . . 2 . Utility . | . . . . Weapon . | . . . . Parts Attached 15 | 5 3 6 1 Power 4 | 1 . 2 1 Engine 4 | 1 . 2 1 Core . | . . . . Reactor . | . . . . Propulsion 4 | 2 . 2 . Treads . | . . . . Leg . | . . . . Wheel 3 | 2 . 1 . Hover . | . . . . Flight 1 | . . 1 . Utility 2 | 1 1 . . Device 1 | . 1 . . Storage 1 | 1 . . . Processor . | . . . . Hackware . | . . . . Protection . | . . . . Artifact . | . . . . Weapon 5 | 1 2 2 . Energy Gun . | . . . . Energy Cannon 1 | . 1 . . Ballistic Gun 3 | 1 . 2 . Ballistic Cannon 1 | . 1 . . Launcher . | . . . . Special Weapon . | . . . . Impact Weapon . | . . . . Slashing Weapon . | . . . . Piercing Weapon . | . . . . Special Melee Weapon . | . . . . Unidentified Prototypes 2 | . . 2 . Parts Lost 3 | . . . 3 Power . | . . . . Propulsion 2 | . . . 2 Utility . | . . . . Weapon 1 | . . . 1 Highest Loss Streak 2 | . . . 2 To Critical Strikes . | . . . . Average Slot Usage (%) 84 | . 87 83 82 Engine 11 | . 12 8 11 Wheel 29 | . 28 33 28 Device 9 | . 7 11 11 Storage 12 | . 14 11 11 Energy Cannon 3 | . 10 . . Ballistic Gun 8 | . 6 8 11 Ballistic Cannon 9 | . 6 11 10 Naked Turns . | . . . . Heaviest Build 20 | 11 18 20 20 Greatest Support 48 | 32 32 48 48 Greatest Overweight (x) . | . . . . Average Overweight (x) . | . . . . Largest Inventory Capacity 8 | 8 8 8 8 Average Capacity 7 | 6 8 8 8 Most Carried 6 | 3 2 2 6 Average Carried 1 | . . . 3 Final Capacity 8 | 8 8 8 8 Final Carried 5 | . 2 1 5 Class Distribution -------------------- 100% | Mutant Dominant Class ---------------- Mutant | -10/Materials Mutant | -9/Materials Mutant | -9/Mines Resources | -11 -10 -9 -9 ----------- Run | Jun Mat Mat Min Matter Collected 438 | 174 54 98 112 Remotely . | . . . . Salvage Created 248 | . 77 98 73 Parts 18 | . 13 4 1 Haulers Intercepted . | . . . . Recyclers Shooed . | . . . . Parts Field Recycled . | . . . . Retrieved Matter . | . . . . Parts Self-Destructed . | . . . . Prevented . | . . . . Kills | -11 -10 -9 -9 ------- Run | Jun Mat Mat Min Combat Hostiles Destroyed 10 | . 6 2 2 Guns 6 | . 2 2 2 Cannons 4 | . 4 . . Classes Destroyed 4 | . 1 1 2 Swarmer 6 | . 6 . . Grunt 1 | . . . 1 Brawler 1 | . . . 1 Sentry 2 | . . 2 . Best Kill Streak 3 | . 3 1 1 Combat Bots Only 3 | . 3 1 1 Max Kills in Single Turn 1 | . 1 1 1 Gunslinging . | . . . . Exploded . | . . . . Melee . | . . . . Uniques/NPCs Destroyed . | . . . . Combat | -11 -10 -9 -9 -------- Run | Jun Mat Mat Min Damage Taken 642 | . 254 104 284 Core 134 | . 45 28 61 Absorbed by Shields . | . . . . Core Remaining (%) 91 | 100 82 . . Volleys Fired 41 | . 16 7 18 Largest 2 | . 2 2 2 Hottest 95 | . 95 58 58 Shots Fired 81 | . 32 14 35 Gun 32 | . 7 7 18 Cannon 49 | . 25 7 17 Launcher . | . . . . Special . | . . . . Kinetic 65 | . 16 14 35 Thermal 16 | . 16 . . Explosive . | . . . . Electromagnetic . | . . . . Robot Hit Streak 12 | . 4 5 12 Robot Miss Streak 5 | . 5 2 4 Penetration Max . | . . . . Secondary Targets . | . . . . Shots Hit Robots 39 | . 12 9 18 Core Hits 14 | . 7 4 3 Critical Kills . | . . . . Critical Parts Destroyed . | . . . . Critical Strikes 1 | . 1 . . Blast 1 | . 1 . . Melee Attacks . | . . . . Impact . | . . . . Slashing . | . . . . Piercing . | . . . . Sneak Attacks . | . . . . Combat Hostiles . | . . . . Follow-up Attacks . | . . . . Damage Inflicted 662 | . 226 148 288 Guns 296 | . 34 92 170 Cannons 366 | . 192 56 118 Explosions . | . . . . Melee . | . . . . Ramming . | . . . . Kinetic 539 | . 103 148 288 Thermal 123 | . 123 . . Explosive . | . . . . Electromagnetic . | . . . . Impact . | . . . . Slashing . | . . . . Piercing . | . . . . Highest Corruption . | . . . . Average Corruption . | . . . . Corruption Purged . | . . . . Corruption Blocked . | . . . . Overload Shots . | . . . . Overflow Damage . | . . . . Projectiles . | . . . . Explosions . | . . . . Melee . | . . . . Knockbacks 1 | . 1 . . Impact . | . . . . Kinetic 1 | . 1 . . Secondary . | . . . . Self-Inflicted Damage . | . . . . Shots . | . . . . Rammed . | . . . . Targets Rammed . | . . . . Kicked . | . . . . Crushed . | . . . . Highest Temperature 217 | . 217 25 3 Average Temperature 74 | . 99 11 3 Received Heat Transfer 123 | . . 45 78 Siege Activations . | . . . . Robots Corrupted . | . . . . Combat Hostiles . | . . . . Parts Fried . | . . . . Impact Corruptions . | . . . . Robots Melted . | . . . . Combat Hostiles . | . . . . Parts Melted . | . . . . Heat Transferred 259 | . 259 . . Parts Sabotaged . | . . . . Parts Stolen . | . . . . Parts Stripped . | . . . . Power Chain Reactions . | . . . . Missiles Intercepted . | . . . . Alert | -11 -10 -9 -9 ------- Run | Jun Mat Mat Min Peak Influence 170 | . 170 161 102 Initial 71 | . . 71 62 Average 73 | . 61 109 72 Maximum Alert Level . | . . . . Low Security (%) 100 | 100 100 100 100 Level 1 . | . . . . Level 2 . | . . . . Level 3 . | . . . . Level 4 . | . . . . Level 5 . | . . . . High Security . | . . . . Max Security . | . . . . Squads Dispatched . | . . . . Investigation . | . . . . Extermination . | . . . . Reinforcement . | . . . . Assault . | . . . . Garrison . | . . . . Intercept . | . . . . Searches Triggered . | . . . . Construction Impeded . | . . . . Haulers Reinforced . | . . . . Active Scanning Responses . | . . . . Cargo Convoy Interrupts . | . . . . Stealth | -11 -10 -9 -9 --------- Run | Jun Mat Mat Min Distress Signals 1 | . . 1 . Communications Jammed . | . . . . Distress Signals . | . . . . Times Spotted 16 | . 7 3 6 Peak Tracking Total 4 | . 3 2 4 Tactical Retreats . | . . . . Traps | -11 -10 -9 -9 ------- Run | Jun Mat Mat Min Traps Triggered . | . . . . Indirectly . | . . . . Trap Hack Attempts . | . . . . Triggered . | . . . . Disarmed . | . . . . Reprogrammed . | . . . . Reused . | . . . . Traps Extracted . | . . . . Installed . | . . . . Triggered . | . . . . Most Traps Carried 3 | . . . 3 Machines | -11 -10 -9 -9 ---------- Run | Jun Mat Mat Min Machines Disabled 1 | . . 1 . Max in Single Turn 1 | . . 1 . Machines Repaired . | . . . . Machines Sabotaged . | . . . . Overloaded Fab Kills . | . . . . Hacking | -11 -10 -9 -9 --------- Run | Jun Mat Mat Min Machines Accessed . | . . . . Terminals . | . . . . Fabricators . | . . . . Repair Stations . | . . . . Recycling Units . | . . . . Scanalyzers . | . . . . Garrison Access . | . . . . Total Hacks . | . . . . Successful . | . . . . Failed . | . . . . Catastrophic . | . . . . Database Lockouts . | . . . . Manual . | . . . . Terminals . | . . . . Fabricators . | . . . . Repair Stations . | . . . . Recycling Units . | . . . . Scanalyzers . | . . . . Garrison Access . | . . . . Terminal Hacks . | . . . . Fabricator Hacks . | . . . . Repair Station Hacks . | . . . . Recycling Unit Hacks . | . . . . Scanalyzer . | . . . . Garrison Access Hacks . | . . . . Unauthorized Hacks . | . . . . Terminals . | . . . . Fabricators . | . . . . Repair Stations . | . . . . Recycling Units . | . . . . Scanalyzers . | . . . . Garrison Access . | . . . . Data Cores Recovered . | . . . . Used . | . . . . Hacking Detections . | . . . . Full Trace Events . | . . . . Feedback Events . | . . . . Feedback Blocked . | . . . . Robot Schematics Acquired . | . . . . Robots Built . | . . . . Authchips . | . . . . Time . | . . . . Total Robot Build Rating . | . . . . Part Schematics Acquired . | . . . . Parts Built . | . . . . Authchips . | . . . . Time . | . . . . Total Part Build Rating . | . . . . Parts Repaired . | . . . . Time . | . . . . Parts Recycled . | . . . . Recycled Matter . | . . . . Retrieved Matter . | . . . . Retrieved Components . | . . . . Parts Scanalyzed . | . . . . Part Schematics Acquired . | . . . . Parts Damaged . | . . . . Bothacking | -11 -10 -9 -9 ------------ Run | Jun Mat Mat Min Used RIF Installer . | . . . . Robots Hacked . | . . . . Non-combat . | . . . . Combat . | . . . . Robot Hacks Applied . | . . . . Relay Couplers Released . | . . . . Fabnet Peak Effective % . | . . . . Robots Rewired . | . . . . Allies Hacked . | . . . . Hacks Repelled . | . . . . Allies | -11 -10 -9 -9 -------- Run | Jun Mat Mat Min Total Allies . | . . . . Largest Group . | . . . . Highest-Rated Group . | . . . . Highest-Rated Ally . | . . . . Total Orders . | . . . . Ally Attacks . | . . . . Total Damage . | . . . . Kills . | . . . . Allies Corrupted . | . . . . Allies Melted . | . . . . Intel | -11 -10 -9 -9 ------- Run | Jun Mat Mat Min Robot Analysis Total . | . . . . Derelict Logs Recovered . | . . . . Drone Launches . | . . . . Drone Recoveries . | . . . . Exploration | -11 -10 -9 -9 ------------- Run | Jun Mat Mat Min Turns Passed 749 | 43 252 176 278 Spaces Moved 569 | 35 196 120 218 Core 2 | 2 . . . Treads . | . . . . Legs . | . . . . Wheels 567 | 33 196 120 218 Hover . | . . . . Flight . | . . . . Fastest Speed 50 | 50 100 100 100 Average Speed 99 | 97 100 100 100 Slowest Speed 100 | 100 100 100 100 Overloaded Moves . | . . . . Propulsion Burnouts . | . . . . Robots Hopped . | . . . . Cave-ins Triggered . | . . . . Exploration Rate (%) 20 | 3 28 11 40 Regions Visited 3 Branch Regions 1 Pre-discovered Areas . | . . . . Known Exits Taken . | . . . . Unknown Exits Taken 3 | 1 1 1 . Scrap Searched 1 | . . . 1 Spaces Dug . | . . . . Terrain Destroyed . | . . . . Melee . | . . . . Projectile . | . . . . AOE . | . . . . Terrain Rammed . | . . . . Walls Destroyed . | . . . . Machines Disabled . | . . . . Actions | -11 -10 -9 -9 --------- Run | Jun Mat Mat Min Total 672 | 44 222 163 243 Wait 25 | . 1 24 . Move 566 | 34 195 119 218 Hop . | . . . . Pick Up 18 | 5 5 3 5 Fast Attach . | . . . . Attach 15 | 5 3 6 1 Detach 2 | . . 2 . Swap . | . . . . Drop 5 | . 2 2 1 Fire 41 | . 16 7 18 Melee . | . . . . Ram . | . . . . Kick . | . . . . Crush . | . . . . Escape Stasis . | . . . . Rewire . | . . . . Trap . | . . . . Miscellaneous . | . . . . Route ------- -11/Junkyard -10/Materials -9/Materials -9/Mines (discovered 2 exits: [*Mat x2]) History --------- Turn | Location | Event 28 | -11/Junkyard | Discovered new exit (range 14) 44 | -11/Junkyard | Entered Materials 283 | -10/Materials | Discovered new exit (range 12) 296 | -10/Materials | Entered another Materials area 296 | -9/Materials | Evolved 2 slots: Propulsion x2 334 | -9/Materials | Build established: Mutant 416 | -9/Materials | Discovered new exit (range 8) 472 | -9/Materials | Entered Mines 487 | -9/Mines | Discovered new exit (range 7) 495 | -9/Mines | Received a Rocket Launcher from a helpful Derelict 546 | -9/Mines | Found a hidden stash of uninstalled traps 699 | -9/Mines | Discovered new exit (range 6) 750 | -9/Mines | Self-destructed Last Messages --------------- 00691_ Acquired 2 matter. 00692_ Acquired 1 matter. 00693_ K-01 Serf collects debris. 00693_ Acquired 31 matter. 00695_ Acquired 1 matter. 00696_ Acquired 4 matter. 00697_ K-01 Serf collects debris. 00697_ Acquired 3 matter. 00699_ EXIT=FOUND 00713_ K-01 Serf collects debris. 00732_ Searching scrap... 00732_ Found Lgt. Ion Engine. 00732_ Found Weapon Shielding. 00732_ Found Hcp. Matter Pod. 00732_ Found 28 Matter. 00733_ Acquired 28 matter. 00733_ Dropped Imp. Ion Engine. 00735_ Acquired Lgt. Ion Engine. 00738_ Com. Wheel destroyed. 00747_ Lgt. Cannon destroyed. Map ----- +----------------------------------------------------+ | ?????????????????????????????????????????????????? | | ?????????????????????????????????????????????????? | | ?????????????????????????????????????????????????? | | ?????????????????????????????????????????????????? | | ?????????????????????????????????????????????????? | | ?????????????????????????????????????????????????? | | ?????????????????????????????????????????????????? | | ?????????????????????????????????????????????????? | | ?????????????????????????????????????????????????? | | ?????????????????????????????????????????????????? | | ?????????????????????????????????????????????????? | | ?????????????????????????????????????????????????? | | ?????????????????????????????????????????????????? | | ?????????????????????????????????????????????????? | | ?????????????????????????????????????????????????? | | ?????????????????????????????????????????????????? | | ??????????????????????????????????????????####???? | | ?????????????????????????????????????????## ##??? | | ?????????????????????????????????????????# #??? | | ??????????????????#??????????????????????# #??? | | ??????????????????# ?????????????????????# ##?? | | ??????????????????# ????????????????????# ##? | | ???????????????????# ???????????????????# ## | | ?????????????####### r######??????####### # | | ??????????! s #?????## ## | | ??#####??? s @! #????## | | ??# ???????????#### ###!*###### # | | ### #????????????????????# = ## | | #????????????????????# #### #? | | ## #????????????????????######### ###??# #? | | ## #????????????????????????????# ##????# #? | | ## #????????????????????????????# #?##### ## | | ## #????????????????????????????# #?# | | ## ##??????????????????????????## #?# | | ### ##???????????????????????### ##?# < | | #???????????????????# ### #??# | | ##??????????????????# ##?# """ """ | | ########???????????###### ### """ """ | | ## < #????????????????## ## ## """ """ | | ###### #?????????????????###?## # | | ?????## ## #???????????############ ######### | | ??????###### #?????###???# #??????? | | ???????????# #?????# ???# #??????? | | ???????????# #?????# #???# ##############??????? | | ???????????# #?????# #???# #??????###??????????? | | ???????????# #?????# #???# #?????## ##???????### | | ???????????# #?????# #???# #?????# ##???### # | | ???????????# #?????# #?### #?????# ##?## | | ???????????# ##????# ### ##?????# ### | | ???????????# #???## #?????# | +----------------------------------------------------+ Best States ------------- Heat Dissipation 28 Energy Generation 12 Energy Capacity 265 Matter Stores 240 Matter Capacity 300 Sight Range 16 Terrain Scan Density 10 ECM Strength 1 Evasion (%) 40 Item Schematics ----------------- None Robot Schematics ------------------ None Fabricated ------------ Nothing Alien Tech Used ----------------- None Achievements -------------- None Challenges ------------ None Game ------ Seed TransmissionCloakArmor Manual? 0 Play Time 00:10:22 Cumulative 6.3 hours Start 2023.03.13 @ 12:21:51 End 2023.03.13 @ 12:30:56 Sessions 1 Manual Loads 0 Difficulty Rogue Special Mode None Game No. 14 Rogue 14 Adventurer 0 Explorer 0 Win Type - Total 0 Types 0/0/0/0/0/0/0/0/0 Lore% 13 Gallery% 16 Achievement% 12 Wizard Run 0 Options --------- ASCII 0 Keyboard 0 Movement Mouse Keybinds 0 Fullscreen 1 Font 24/Smallcaps Map View 64x52 Tactical HUD 1 Map Filters NONE Filters NONE Steam 1 RUN: 2393f396-d8ed-4100-98cf-ae9f6311a509